fUST/lending_fUST_20240421
["ID","MTS","AMOUNT","RATE_DAILY","PERIOD"]
[323085427,1713634246351,-398.52582035,0.00023783,2]
[323085428,1713634270955,519.62471906,0.000226,2]
[323085430,1713634300813,138.0675164,0.000226,2]
[323085433,1713634393515,-21500.0,0.00024,7]
[323085436,1713634664056,176.6784263,0.00020508,2]
[323085437,1713634679936,200.0,0.00020508,2]
[323085438,1713634697997,200.0,0.00020508,2]
[323085440,1713634748999,542.516588,0.00020776,2]
[323085450,1713634893211,24900.0,0.00020664,2]
[323085451,1713635006606,250.0,0.00020563,2]
[323085454,1713635259528,271.258294,0.00020347,2]
[323085457,1713635355147,151.53567492,0.00020306,2]
[323085513,1713635432048,-521.19476789,0.00021229,2]
[323085515,1713635432057,-1549.87348817,0.0002123,2]
[323085517,1713635432067,-189.08636994,0.0002123,2]
[323085519,1713635432076,-203.72048069,0.0002123,2]
[323085521,1713635432085,-173.12884358,0.00021231,2]
[323085523,1713635432095,-161.93319074,0.00021231,2]
[323085525,1713635432104,-519.62471906,0.00021232,2]
[323085527,1713635432113,-300.0,0.00021232,2]
[323085529,1713635432122,-154.8915759,0.00021232,2]
[323085531,1713635432131,-300.0,0.00021232,2]
[323085533,1713635432139,-677.63819334,0.00021232,2]
[323085535,1713635432149,-471.46116533,0.00021233,2]
[323085536,1713635432158,-468.17882458,0.00021233,2]
[323085537,1713635432168,-154.8915759,0.00021233,2]
[323085538,1713635432181,-1674.84330151,0.00021233,2]
[323085539,1713635432191,-7862.35862975,0.00021233,2]
[323085540,1713635432200,-300.0,0.00021234,2]
[323085541,1713635432209,-469.3412373,0.00021234,2]
[323085542,1713635432218,-539.54322687,0.00021234,2]
[323085543,1713635432227,-977.24197565,0.00021235,2]
[323085544,1713635432237,-31279.26650148,0.00021238,2]
[323085545,1713635432246,-775.4776393,0.0002124,2]
[323085546,1713635432255,-59123.51852126,0.00021242,2]
[323085547,1713635432264,-6924.63164848,0.00021243,2]
[323085548,1713635432273,-227.79439962,0.00021339,2]
[323085549,1713635432282,-189.287013,0.00021339,2]
[323085550,1713635432291,-191.58611769,0.00021339,2]
[323085551,1713635432300,-517.65734297,0.0002134,2]
[323085552,1713635432309,-181.83379511,0.0002134,2]
[323085553,1713635432317,-500.0,0.0002134,2]
[323085554,1713635432327,-221.85314698,0.0002134,2]
[323085555,1713635432336,-689.06304347,0.0002145,2]
[323085556,1713635432345,-513.93985352,0.0002145,2]
[323085557,1713635432354,-323.40323098,0.0002145,2]
[323085558,1713635432363,-564.20205004,0.0002145,2]
[323085559,1713635432373,-840.79239119,0.00021456,2]
[323085560,1713635432382,-840.79239118,0.00021459,2]
[323085561,1713635432391,-840.79239118,0.00021461,2]
[323085562,1713635432400,-840.79239118,0.00021464,2]
[323085563,1713635432409,-840.79239118,0.00021466,2]
[323085564,1713635432420,-2379.61948987,0.000219,2]
[323085565,1713635432430,-1576.32789394,0.00021991,2]
[323085566,1713635432439,-5797.00010816,0.00021991,2]
[323085567,1713635432448,-1489.22314453,0.00021991,2]
[323085568,1713635432457,-329.39846217,0.00021992,2]
[323085569,1713635432466,-178.0,0.00022,2]
[323085570,1713635432477,-178.0,0.00022192,2]
[323085571,1713635432487,-169.58470713,0.00022841,2]
[323085572,1713635432496,-169.58470713,0.00022946,2]
[323085573,1713635432505,-178.0,0.00023014,2]
[323085574,1713635432513,-169.58470713,0.00023052,2]
[323085575,1713635432523,-420.0,0.0002309,2]
[323085576,1713635432532,-169.58470713,0.00023158,2]
[323085577,1713635432542,-169.58470713,0.00023263,2]
[323085578,1713635432551,-420.0,0.00023355,2]
[323085579,1713635432561,-169.58470713,0.00023369,2]
[323085580,1713635432571,-269.96462929,0.00023429,2]
[323085581,1713635432581,-169.58470713,0.00023474,2]
[323085582,1713635432591,-169.58470713,0.0002358,2]
[323085583,1713635432600,-169.58470713,0.00023686,2]
[323085584,1713635432609,-309.67484846,0.00023779,2]
[323085585,1713635432619,-211.91364755,0.00023779,2]
[323085586,1713635432627,-170.60142595,0.00023779,2]
[323085587,1713635432637,-699.00168239,0.00023779,2]
[323085588,1713635432649,-667.99263696,0.00023779,2]
[323085589,1713635432658,-207.7309784,0.00023779,2]
[323085590,1713635432668,-309.73672456,0.00023779,2]
[323085591,1713635432679,-309.64391027,0.0002378,2]
[323085592,1713635432688,-484.91036768,0.00023783,2]
[323085593,1713635432698,-159.5430392,0.00023783,2]
[323085594,1713635432709,-576.12351966,0.00023783,2]
[323085595,1713635432721,-672.57719351,0.00023784,2]
[323085596,1713635432731,-1545.21602046,0.00023789,2]
[323085597,1713635432741,-169.58470713,0.00023791,2]
[323085598,1713635432750,-169.58470713,0.00023897,2]
[323085599,1713635432760,-1088.76018233,0.00023996,2]
[323085600,1713635432769,-193.4926104,0.00023996,2]
[323085601,1713635432779,-154.94105672,0.00023996,2]
[323085602,1713635432789,-154.95624087,0.00023996,2]
[323085603,1713635432800,-160.67250612,0.00023996,2]
[323085604,1713635432809,-255.22509052,0.00023996,2]
[323085605,1713635432819,-159.91878238,0.00023996,2]
[323085606,1713635432828,-174.41683499,0.00023996,2]
[323085607,1713635432838,-80000.0,0.00023996,2]
[323085608,1713635432848,-167.44009393,0.00023997,2]
[323085609,1713635432859,-193.51520401,0.00023998,2]
[323085610,1713635432869,-158.14916347,0.00023998,2]
[323085611,1713635432878,-225.29314039,0.00023998,2]
[323085612,1713635432886,-263.420573,0.00023998,2]
[323085613,1713635432895,-273.59874397,0.00023998,2]
[323085614,1713635432904,-667.8756646,0.00023998,2]
[323085615,1713635432913,-155.07041477,0.00023998,2]
[323085616,1713635432924,-186.15931013,0.00023999,2]
[323085617,1713635432933,-18498.7,0.00024,7]
[323085618,1713635432942,-830.83412324,0.00024,2]
[323085619,1713635432951,-180.0,0.00024164,2]
[323085620,1713635432960,-712.39746533,0.00024376,2]
[323085621,1713635432970,-150.0,0.00024429,2]
[323085622,1713635432979,-157.1912324,0.000245,2]
[323085623,1713635432988,-150.87929656,0.00024715,4]
[323085624,1713635432997,-265.49940207,0.00025,2]
[323085625,1713635433006,-155.05858479,0.00025,2]
[323085626,1713635433015,-417.314,0.00025053,2]
[323085627,1713635433024,-587.0,0.00025111,2]
[323085628,1713635433033,-150.87929656,0.0002522,2]
[323085629,1713635433043,-150.0,0.00025429,2]
[323085630,1713635433052,-624.61987327,0.00025595,2]
[323085631,1713635433061,-587.0,0.00025691,2]
[323085632,1713635433071,-178.0,0.00025775,2]
[323085633,1713635433081,-301.0,0.00026,2]
[323085634,1713635433091,-301.0,0.00026,2]
[323085635,1713635433101,-301.0,0.00026,2]
[323085636,1713635433111,-587.0,0.000264,2]
[323085637,1713635433122,-150.0,0.00026429,2]
[323085638,1713635433131,-620.23099366,0.00026875,2]
[323085639,1713635433141,-27683.03940599,0.000269,2]
[323085640,1713635433150,-177.717456,0.000269,2]
[323085641,1713635433160,-151.0,0.000269,2]
[323085642,1713635433169,-177.717456,0.000269,2]
[323085643,1713635433182,-151.0,0.000269,2]
[323085644,1713635433191,-151.0,0.000269,2]
[323085645,1713635433200,-2379.61948987,0.000269,2]
[323085646,1713635433210,-309.59752631,0.00027,2]
[323085647,1713635433219,-7920.21616865,0.00027,2]
[323085648,1713635433229,-332.29144804,0.00027,2]
[323085649,1713635433238,-8512.35443787,0.00027,2]
[323085650,1713635433247,-2000.0,0.00027,2]
[323085651,1713635433256,-2000.0,0.00027,2]
[323085652,1713635433265,-2000.0,0.00027,2]
[323085653,1713635433275,-2436.98171088,0.00027,7]
[323085654,1713635433284,-500.0,0.00027,2]
[323085655,1713635433294,-167.285771,0.00027035,2]
[323085656,1713635433303,-2822.714844,0.00027035,2]
[323085657,1713635433312,-2526.014014,0.00027035,2]
[323085658,1713635433321,-167.01626,0.00027035,2]
[323085659,1713635433330,-1786.52947,0.00027035,2]
[323085660,1713635433340,-1590.499951,0.00027035,2]
[323085661,1713635433348,-250.179464,0.00027035,2]
[323085662,1713635433357,-160.22759,0.00027035,2]
[323085663,1713635433367,-160.65873328,0.00027224,2]
[323085664,1713635433375,-156.910446,0.00027271,2]
[323085665,1713635433384,-156.910446,0.00027271,2]
[323085666,1713635433394,-1000.0,0.00027277,2]
[323085667,1713635433403,-1005.57374622,0.00027304,2]
[323085668,1713635433412,-823.0,0.00027309,2]
[323085669,1713635433423,-151.0,0.0002733,2]
[323085670,1713635433431,-151.401165,0.0002733,2]
[323085671,1713635433441,-151.0,0.0002733,2]
[323085672,1713635433449,-151.0,0.0002733,2]
[323085673,1713635433458,-151.0,0.0002733,2]
[323085674,1713635433468,-151.237041,0.0002733,2]
[323085675,1713635433478,-1503.907048,0.0002733,2]
[323085676,1713635433487,-151.0,0.0002733,2]
[323085677,1713635433496,-1503.907048,0.0002733,2]
[323085678,1713635433506,-496.45039,0.0002733,2]
[323085679,1713635433515,-496.45039,0.0002733,2]
[323085680,1713635433525,-151.0,0.0002733,2]
[323085681,1713635433535,-1298.554091,0.0002733,2]
[323085682,1713635433545,-1298.554091,0.0002733,2]
[323085683,1713635433555,-151.0,0.0002733,2]
[323085684,1713635433564,-210.475312,0.0002733,2]
[323085685,1713635433574,-210.475312,0.0002733,2]
[323085686,1713635433583,-151.0,0.0002733,2]
[323085687,1713635433592,-151.0,0.0002733,2]
[323085688,1713635433602,-177.717456,0.0002733,2]
[323085689,1713635433611,-151.0,0.0002733,2]
[323085690,1713635433621,-177.717456,0.0002733,2]
[323085691,1713635433630,-151.0,0.0002733,2]
[323085692,1713635433640,-151.841853,0.0002733,2]
[323085693,1713635433651,-151.331985,0.0002733,2]
[323085694,1713635433660,-44444.0,0.0002733,2]
[323085695,1713635433670,-2822.714844,0.00027373,2]
[323085696,1713635433684,-2526.014014,0.00027373,2]
[323085697,1713635433693,-1786.52947,0.00027373,2]
[323085698,1713635433703,-1590.499951,0.00027373,2]
[323085699,1713635433713,-178.0,0.00027386,2]
[323085700,1713635433723,-156.724254,0.00027397,2]
[323085701,1713635433733,-156.724254,0.00027397,2]
[323085702,1713635433743,-352.485381,0.00027397,2]
[323085703,1713635433752,-352.485381,0.00027397,2]
[323085704,1713635433761,-1046.050105,0.00027397,2]
[323085705,1713635433770,-151.0,0.00027397,2]
[323085706,1713635433780,-151.0,0.00027397,2]
[323085707,1713635433789,-1046.050105,0.00027397,2]
[323085708,1713635433798,-151.0,0.00027397,2]
[323085709,1713635433807,-500.0,0.00027397,2]
[323085710,1713635433817,-500.0,0.00027397,2]
[323085711,1713635433826,-500.0,0.00027397,2]
[323085712,1713635433836,-500.0,0.00027397,2]
[323085713,1713635433845,-500.0,0.00027397,2]
[323085714,1713635433855,-500.0,0.00027397,2]
[323085715,1713635433864,-500.0,0.00027397,2]
[323085716,1713635433874,-500.0,0.00027397,2]
[323085717,1713635433883,-500.0,0.00027397,2]
[323085718,1713635433893,-500.0,0.00027397,2]
[323085719,1713635433903,-500.0,0.00027397,2]
[323085720,1713635433912,-500.0,0.00027397,2]
[323085721,1713635433923,-500.0,0.00027397,2]
[323085722,1713635433932,-500.0,0.00027397,2]
[323085723,1713635433941,-500.0,0.00027397,2]
[323085724,1713635433951,-289.61674303,0.00027397,2]
[323085725,1713635433960,-447.457419,0.00027397,2]
[323085726,1713635433970,-9193.643966,0.00027397,2]
[323085727,1713635433979,-166.666666,0.00027397,2]
[323085728,1713635433989,-1000.0,0.00027397,2]
[323085729,1713635433998,-310.422512,0.00027397,2]
[323085730,1713635434093,-54836.71781685,0.00027399,5]
[323085731,1713635434103,-19400.2637326,0.00027399,2]
[323085732,1713635434112,-151.0,0.00027399,2]
[323085733,1713635434122,-151.0,0.00027399,2]
[323085734,1713635434131,-151.0,0.00027399,2]
[323085735,1713635434140,-151.0,0.00027399,2]
[323085736,1713635434149,-151.0,0.00027399,2]
[323085737,1713635434158,-151.0,0.00027399,2]
[323085738,1713635434168,-1503.907048,0.00027399,2]
[323085739,1713635434178,-1503.907048,0.00027399,2]
[323085740,1713635434187,-496.45039,0.00027399,2]
[323085741,1713635434197,-496.45039,0.00027399,2]
[323085742,1713635434206,-151.0,0.00027399,2]
[323085743,1713635434215,-151.0,0.00027399,2]
[323085744,1713635434224,-292.451662,0.00027399,2]
[323085745,1713635434233,-151.0,0.00027399,2]
[323085746,1713635434242,-177.717456,0.00027399,2]
[323085747,1713635434252,-151.0,0.00027399,2]
[323085748,1713635434261,-177.717456,0.00027399,2]
[323085749,1713635434270,-151.0,0.00027399,2]
[323085750,1713635434279,-775.47763929,0.00027428,3]
[323085751,1713635434288,-150.0,0.00027429,2]
[323085752,1713635434297,-151.0,0.00027429,2]
[323085753,1713635434307,-151.0,0.00027429,2]
[323085754,1713635434317,-156.910446,0.0002743,2]
[323085755,1713635434327,-156.910446,0.0002743,2]
[323085756,1713635434336,-156.724254,0.0002743,2]
[323085757,1713635434345,-156.724254,0.0002743,2]
[323085758,1713635434355,-352.485381,0.0002743,2]
[323085759,1713635434365,-352.485381,0.0002743,2]
[323085760,1713635434375,-151.0,0.0002743,2]
[323085761,1713635434384,-1046.050105,0.0002743,2]
[323085762,1713635434394,-204.536096,0.0002743,2]
[323085763,1713635434403,-1046.050105,0.0002743,2]
[323085764,1713635434412,-151.0,0.0002743,2]
[323085765,1713635434423,-151.256745,0.0002743,2]
[323085766,1713635434432,-1298.554091,0.0002743,2]
[323085767,1713635434442,-1298.554091,0.0002743,2]
[323085768,1713635434451,-210.475312,0.0002743,2]
[323085769,1713635434460,-210.475312,0.0002743,2]
[323085770,1713635434469,-177.717456,0.0002743,2]
[323085771,1713635434479,-151.0,0.0002743,2]
[323085772,1713635434498,-177.717456,0.0002743,2]
[323085773,1713635434507,-248.156179,0.0002743,2]
[323085774,1713635434516,-1000.0,0.00027446,2]
[323085775,1713635434526,-245.48204458,0.00027497,2]
[323085776,1713635434535,-3343.36950393,0.00027499,2]
[323085777,1713635434546,-61524.84785149,0.000275,2]
[323085778,1713635434555,-803.76458686,0.000275,17]
[323085779,1713635434564,-5061.96154938,0.000275,2]
[323085780,1713635434573,-1000.0,0.000275,2]
[323085781,1713635434583,-156.910446,0.000275,2]
[323085782,1713635434592,-156.910446,0.000275,2]
[323085783,1713635434602,-500.0,0.000275,2]
[323085784,1713635434613,-156.724254,0.000275,2]
[323085785,1713635434623,-156.724254,0.000275,2]
[323085786,1713635434632,-156.724254,0.000275,2]
[323085787,1713635434642,-156.724254,0.000275,2]
[323085788,1713635434656,-151.0,0.000275,2]
[323085789,1713635434666,-151.0,0.000275,2]
[323085790,1713635434679,-151.0,0.000275,2]
[323085791,1713635434689,-151.0,0.000275,2]
[323085792,1713635434698,-352.485381,0.000275,2]
[323085793,1713635434709,-352.485381,0.000275,2]
[323085794,1713635434718,-352.485381,0.000275,2]
[323085795,1713635434729,-352.485381,0.000275,2]
[323085796,1713635434739,-151.0,0.000275,2]
[323085797,1713635434748,-151.0,0.000275,2]
[323085798,1713635434758,-1046.050105,0.000275,2]
[323085799,1713635434767,-1046.050105,0.000275,2]
[323085800,1713635434776,-1046.050105,0.000275,2]
[323085801,1713635434786,-1046.050105,0.000275,2]
[323085802,1713635434795,-151.0,0.000275,2]
[323085803,1713635434805,-151.0,0.000275,2]
[323085804,1713635434815,-151.0,0.000275,2]
[323085805,1713635434825,-151.0,0.000275,2]
[323085806,1713635434835,-151.0,0.000275,2]
[323085807,1713635434844,-151.0,0.000275,2]
[323085808,1713635434854,-151.0,0.000275,2]
[323085809,1713635434863,-151.0,0.000275,2]
[323085810,1713635434873,-151.0,0.000275,2]
[323085811,1713635434883,-151.0,0.000275,2]
[323085812,1713635434892,-1503.907048,0.000275,2]
[323085813,1713635434901,-1503.907048,0.000275,2]
[323085814,1713635434910,-177.0,0.000275,2]
[323085815,1713635434920,-1503.907048,0.000275,2]
[323085816,1713635434932,-1503.907048,0.000275,2]
[323085817,1713635434941,-499.9656,0.000275,2]
[323085818,1713635434950,-496.45039,0.000275,2]
[323085819,1713635434960,-496.45039,0.000275,2]
[323085820,1713635434969,-496.45039,0.000275,2]
[323085821,1713635434981,-496.45039,0.000275,2]
[323085822,1713635434991,-151.0,0.000275,2]
[323085823,1713635435000,-1298.554091,0.000275,2]
[323085824,1713635435009,-1298.554091,0.000275,2]
[323085825,1713635435019,-1298.554091,0.000275,2]
[323085826,1713635435029,-1298.554091,0.000275,2]
[323085827,1713635435038,-210.475312,0.000275,2]
[323085828,1713635435048,-210.475312,0.000275,2]
[323085829,1713635435058,-210.475312,0.000275,2]
[323085830,1713635435068,-210.475312,0.000275,2]
[323085831,1713635435078,-151.0,0.000275,2]
[323085832,1713635435088,-177.717456,0.000275,2]
[323085833,1713635435098,-151.0,0.000275,2]
[323085834,1713635435107,-177.717456,0.000275,2]
[323085835,1713635435116,-755.99607076,0.00027524,2]
[323085836,1713635435126,-161.45760147,0.00027563,2]
[323085837,1713635435135,-178.0,0.00027616,2]
[323085838,1713635435145,-161284.7498257,0.0002763,2]
[323085839,1713635435154,-913.02,0.0002763,2]
[323085840,1713635435164,-156.910446,0.0002763,2]
[323085841,1713635435175,-156.910446,0.0002763,2]
[323085842,1713635435184,-156.910446,0.0002763,2]
[323085843,1713635435194,-156.910446,0.0002763,2]
[323085844,1713635435203,-156.724254,0.0002763,2]
[323085845,1713635435216,-156.724254,0.0002763,2]
[323085846,1713635435225,-151.0,0.0002763,2]
[323085847,1713635435235,-151.0,0.0002763,2]
[323085848,1713635435244,-352.485381,0.0002763,2]
[323085849,1713635435254,-352.485381,0.0002763,2]
[323085850,1713635435263,-151.0,0.0002763,2]
[323085851,1713635435272,-1046.050105,0.0002763,2]
[323085852,1713635435281,-1046.050105,0.0002763,2]
[323085853,1713635435291,-151.0,0.0002763,2]
[323085854,1713635435300,-151.0,0.0002763,2]
[323085855,1713635435309,-151.0,0.0002763,2]
[323085856,1713635435319,-153.781737,0.0002763,2]
[323085857,1713635435328,-1503.907048,0.0002763,2]
[323085858,1713635435338,-1503.907048,0.0002763,2]
[323085859,1713635435347,-496.45039,0.0002763,2]
[323085860,1713635435356,-496.45039,0.0002763,2]
[323085861,1713635435365,-172.326633,0.0002763,2]
[323085862,1713635435375,-1298.554091,0.0002763,2]
[323085863,1713635435384,-1298.554091,0.0002763,2]
[323085864,1713635435394,-210.475312,0.0002763,2]
[323085865,1713635435404,-210.475312,0.0002763,2]
[323085866,1713635435414,-153.191879,0.0002763,2]
[323085867,1713635435425,-177.717456,0.0002763,2]
[323085868,1713635435434,-151.0,0.0002763,2]
[323085869,1713635435443,-177.717456,0.0002763,2]
[323085870,1713635435452,-19637.08068128,0.0002769,2]
[323085871,1713635435461,-2822.714844,0.00027711,2]
[323085872,1713635435471,-2526.014014,0.00027711,2]
[323085873,1713635435481,-1786.52947,0.00027711,2]
[323085874,1713635435492,-1590.499951,0.00027711,2]
[323085875,1713635435502,-1044.04948982,0.00027801,2]
[323085876,1713635435513,-155.89127444,0.00027998,2]
[323085877,1713635435523,-1000.0,0.00028,28]
[323085878,1713635435533,-762.69092689,0.00028,2]
[323085879,1713635435544,-1057.0,0.00028,2]
[323085880,1713635435555,-2000.0,0.00028,2]
[323085881,1713635435565,-2000.0,0.00028,2]
[323085882,1713635435574,-150.0,0.00028,5]
[323085883,1713635435585,-2000.0,0.00028,2]
[323085884,1713635435595,-10559.9185359,0.00028,2]
[323085885,1713635435605,-156.910446,0.00028,2]
[323085886,1713635435616,-156.910446,0.00028,2]
[323085887,1713635435627,-156.724254,0.00028,2]
[323085888,1713635435637,-156.724254,0.00028,2]
[323085889,1713635435650,-156.724254,0.00028,2]
[323085890,1713635435660,-156.724254,0.00028,2]
[323085891,1713635435670,-151.0,0.00028,2]
[323085892,1713635435686,-151.0,0.00028,2]
[323085893,1713635435696,-151.0,0.00028,2]
[323085894,1713635435706,-222.90778,0.00028,2]
[323085895,1713635435716,-352.485381,0.00028,2]
[323085896,1713635435726,-352.485381,0.00028,2]
[323085897,1713635435738,-352.485381,0.00028,2]
[323085898,1713635435747,-352.485381,0.00028,2]
[323085899,1713635435757,-151.0,0.00028,2]
[323085900,1713635435768,-151.0,0.00028,2]
[323085901,1713635435778,-1046.050105,0.00028,2]
[323085902,1713635435789,-1046.050105,0.00028,2]
[323085903,1713635435799,-1046.050105,0.00028,2]
[323085904,1713635435810,-1046.050105,0.00028,2]
[323085905,1713635435820,-151.0,0.00028,2]
[323085906,1713635435831,-151.0,0.00028,2]
[323085907,1713635435841,-151.0,0.00028,2]
[323085908,1713635435851,-151.0,0.00028,2]
[323085909,1713635435861,-256.582378,0.00028,2]
[323085910,1713635435872,-1503.907048,0.00028,2]
[323085911,1713635435882,-1503.907048,0.00028,2]
[323085912,1713635435892,-1503.907048,0.00028,2]
[323085913,1713635435903,-1503.907048,0.00028,2]
[323085914,1713635435913,-499.9656,0.00028,2]
[323085915,1713635435926,-496.45039,0.00028,2]
[323085916,1713635435935,-496.45039,0.00028,2]
[323085917,1713635435945,-496.45039,0.00028,2]
[323085918,1713635435954,-496.45039,0.00028,2]
[323085919,1713635435964,-1298.554091,0.00028,2]
[323085920,1713635435974,-1298.554091,0.00028,2]
[323085921,1713635435984,-1298.554091,0.00028,2]
[323085922,1713635435993,-1298.554091,0.00028,2]
[323085923,1713635436003,-210.475312,0.00028,2]
[323085924,1713635436013,-210.475312,0.00028,2]
[323085925,1713635436023,-210.475312,0.00028,2]
[323085926,1713635436034,-210.475312,0.00028,2]
[323085927,1713635436044,-177.717456,0.00028,2]
[323085928,1713635436054,-177.717456,0.00028,2]
[323085929,1713635436063,-151.0,0.00028,2]
[323085930,1713635436072,-158.387868,0.00028,2]
[323085931,1713635436082,-177.717456,0.00028,2]
[323085932,1713635436092,-177.717456,0.00028,2]
[323085933,1713635436187,-19810.9773988,0.00028,2]
[323085973,1713635438023,-154.8915759,0.00021229,2]
[323085976,1713635438033,-17086.27377967,0.00021232,2]
[323085978,1713635438045,-55434.8428187,0.00021232,2]
[323085980,1713635438054,-151.0,0.000269,2]
[323085982,1713635438063,-151.0,0.0002733,2]
[323085984,1713635438073,-271730.28828899,0.00028,2]
[323085986,1713635438084,-462.07738452,0.00028,2]
[323086209,1713635443207,-205.30658694,0.0002124,2]
[323086210,1713635443216,-188.7859135,0.0002124,2]
[323086211,1713635443226,-292.21448362,0.00021241,2]
[323086212,1713635443235,-500.0,0.00027397,2]
[323086213,1713635443243,-500.0,0.00027397,2]
[323086214,1713635443253,-336.88502291,0.00027397,2]
[323086215,1713635443262,-500.0,0.00027397,2]
[323086216,1713635443271,-500.0,0.00027397,2]
[323086217,1713635443280,-124.55220988,0.0002799,3]
[323086218,1713635443291,-319.18779012,0.0002799,3]
[323086219,1713635443300,-106011.40686881,0.00028,2]
[323086220,1713635443310,-15083.41190029,0.00028,2]
[323086221,1713635443319,-203.4508895,0.00028,2]
[323086222,1713635443328,-203.4508895,0.00028,2]
[323086223,1713635443337,-150.87929656,0.00028022,2]
[323086224,1713635443346,-250.29064748,0.00028022,2]
[323086225,1713635443354,-166.666666,0.00028038,2]
[323086226,1713635443364,-2822.714844,0.00028049,2]
[323086227,1713635443373,-2526.014014,0.00028049,2]
[323086228,1713635443382,-1786.52947,0.00028049,2]
[323086229,1713635443391,-1590.499951,0.00028049,2]
[323086230,1713635443401,-417.0,0.00028053,2]
[323086231,1713635443411,-153.0,0.00028082,2]
[323086232,1713635443420,-153.0,0.00028082,2]
[323086233,1713635443431,-153.0,0.00028082,2]
[323086234,1713635443440,-153.0,0.00028082,2]
[323086235,1713635443450,-153.0,0.00028082,2]
[323086236,1713635443459,-153.0,0.00028082,2]
[323086237,1713635443468,-153.0,0.00028082,2]
[323086238,1713635443477,-153.0,0.00028082,2]
[323086239,1713635443486,-153.0,0.00028082,2]
[323086240,1713635443496,-153.0,0.00028082,2]
[323086241,1713635443505,-153.0,0.00028082,2]
[323086242,1713635443514,-153.0,0.00028082,2]
[323086243,1713635443524,-153.0,0.00028082,2]
[323086244,1713635443533,-153.0,0.00028082,2]
[323086245,1713635443542,-153.0,0.00028082,2]
[323086246,1713635443551,-153.7993809,0.00028082,2]
[323086247,1713635443560,-620.01154968,0.00028218,2]
[323086248,1713635443569,-823.0,0.0002826,2]
[323086249,1713635443578,-153.0,0.00028356,2]
[323086250,1713635443586,-153.0,0.00028356,2]
[323086251,1713635443595,-153.0,0.00028356,2]
[323086252,1713635443604,-153.0,0.00028356,2]
[323086253,1713635443613,-153.0,0.00028356,2]
[323086254,1713635443622,-153.0,0.00028356,2]
[323086255,1713635443631,-153.0,0.00028356,2]
[323086256,1713635443641,-153.0,0.00028356,2]
[323086257,1713635443650,-306.0,0.00028356,2]
[323086258,1713635443662,-153.0,0.00028356,2]
[323086259,1713635443671,-153.0,0.00028356,2]
[323086260,1713635443681,-153.0,0.00028356,2]
[323086261,1713635443690,-2822.714844,0.00028387,2]
[323086262,1713635443699,-2526.014014,0.00028387,2]
[323086263,1713635443709,-1786.52947,0.00028387,2]
[323086264,1713635443718,-1590.499951,0.00028387,2]
[323086265,1713635443727,-150.0,0.00028428,2]
[323086266,1713635443737,-150.0,0.00028429,2]
[323086267,1713635443746,-150.0,0.00028429,2]
[323086268,1713635443755,-150.0,0.00028429,2]
[323086269,1713635443764,-301.75859313,0.00028493,4]
[323086270,1713635443773,-155.08489051,0.00028498,2]
[323086271,1713635443782,-232.22094662,0.00028498,2]
[323086272,1713635443791,-161.13562327,0.00028498,2]
[323086273,1713635443800,-8176.38920599,0.000285,2]
[323086336,1713635634163,10160.73442139,0.0002,2]
[323086337,1713635652181,500.0,0.000211,2]
[323086341,1713636170526,3325.0,0.000277,120]
[323086342,1713636171890,24900.0,0.00021077,2]
[323086343,1713636327574,152.62623643,0.00021008,2]
[323086344,1713636421620,793.20649662,0.00018977,2]